Cogmind - Beta 17 @@@ ROGUE MODE // 2026.07.27 @ 01:27:15 Player: hoganstuff Result: Destroyed by 30-Y66(R) with Subdweller Machine Gun Performance ------------- Evolutions (0) 0 Regions Visited (2) 400 Robots Destroyed (17) 85 Value Destroyed (308) 308 Prototype IDs (0) 0 Alien Tech Used (0) 0 Bonus (0) 0 TOTAL SCORE: 793 Bonus ------- None Cogmind --------- Core Integrity 0/250 Matter 239/300 Energy 87/125 System Corruption 0% Temperature Cool (0) Movement Rolling (110) Location -10/Subcaves Parts ------- > --- POWER (1) -------- Light Ion Engine > --- PROPULSION (2) --- Subdweller Monowheel > --- UTILITY (2) ------ Light Armor Plating > --- WEAPON (2) ------- Subdweller Laser Flamer > --- INVENTORY (5) ---- ECM Suite Battle Cannon Flamer Peak State ------------ > --- POWER ------------ Light Ion Engine > --- PROPULSION ------- Subdweller Monowheel > --- UTILITY ---------- Light Armor Plating > --- WEAPON ----------- Subdweller Laser Flamer > --- INVENTORY -------- ECM Suite Battle Cannon Flamer [Rating: 8] Favorites ----------- Power Light Ion Engine Engine Light Ion Engine Propulsion Aluminum Leg Leg Aluminum Leg Wheel Subdweller Monowheel Utility Small Storage Unit Device Subdweller Optics Storage Small Storage Unit Protection Light Armor Plating Weapon Light Assault Rifle Energy Gun EM Pulse Gun Ballistic Gun Light Assault Rifle Ballistic Cannon Battle Cannon Launcher Grenade Launcher Special Weapon Mining Laser Special Melee Weapon Datajack Build | -11 -10 -10 ------- Run | Yrd Mat Sub Slots Evolved . | . . . Power . | . . . Propulsion . | . . . Utility . | . . . Weapon . | . . . Parts Attached 20 | 6 5 9 Power 2 | 1 . 1 Engine 2 | 1 . 1 Core . | . . . Reactor . | . . . Propulsion 3 | 2 . 1 Treads . | . . . Leg 2 | 2 . . Wheel 1 | . . 1 Hover . | . . . Flight . | . . . Utility 5 | 1 2 2 Device 1 | . . 1 Storage 1 | 1 . . Processor . | . . . Hackware . | . . . Protection 3 | . 2 1 Artifact . | . . . Weapon 10 | 2 3 5 Energy Gun 2 | 1 . 1 Energy Cannon . | . . . Ballistic Gun 2 | 1 1 . Ballistic Cannon 1 | . . 1 Launcher 1 | . 1 . Special Weapon 3 | . . 3 Impact Weapon . | . . . Slashing Weapon . | . . . Piercing Weapon . | . . . Special Melee Weapon 1 | . 1 . Unidentified Prototypes . | . . . Parts Lost 8 | . 2 6 Power 1 | . . 1 Propulsion 2 | . . 2 Utility 2 | . 1 1 Weapon 3 | . 1 2 Highest Loss Streak 4 | . 2 4 To Critical Strikes . | . . . Average Backups 6 | 1 6 5 Power . | . 1 . Propulsion . | . . . Utility 2 | . 2 2 Weapon 2 | . 2 1 Tool/Special . | . . . Unused Backups 5 | . 3 2 Power . | . . . Propulsion . | . . . Utility 4 | . 2 2 Weapon 1 | . 1 . Tool/Special . | . . . Average Slot Usage (%) 78 | . 99 45 Engine 10 | . 14 4 Leg 19 | . 28 7 Wheel 1 | . . 2 Storage 10 | . 14 3 Protection 10 | . 13 4 Energy Gun 5 | . 7 2 Ballistic Gun 15 | . 18 11 Launcher 1 | . 1 . Special Weapon 1 | . . 4 Peak Build Rating 8 | 6 7 8 Average Rating 5 | 4 6 3 On Entrance 4 | . 6 7 Avg Prop Armor Cover (%) . | . . . Naked Turns 87 | . . 87 Heaviest Build 15 | 11 15 13 Greatest Support 20 | 20 20 20 Greatest Overweight (x) 3 | 1 . 3 Average Overweight (x) . | . . . Largest Inventory Capacity 8 | 8 8 8 Average Capacity 7 | 6 8 5 Most Carried 8 | 2 8 7 Average Carried 6 | 1 7 5 Final Capacity 8 | 8 8 5 Final Carried 7 | 2 7 3 Class Distribution -------------------- 100% | Mutant Dominant Class ---------------- Mutant | -10/Materials Mutant | -10/Subcaves Resources | -11 -10 -10 ----------- Run | Yrd Mat Sub Matter Collected 542 | 208 181 153 Remotely . | . . . Salvage Created 316 | . 276 40 Parts 19 | . 19 . Haulers Intercepted 2 | . 2 . Recyclers Shooed 1 | . 1 . Parts Field Recycled . | . . . Retrieved Matter . | . . . Parts Self-Destructed 3 | . . 3 Prevented . | . . . Parts Restored . | . . . Kills | -11 -10 -10 ------- Run | Yrd Mat Sub Combat Hostiles Destroyed 13 | . 12 1 Guns 6 | . 5 1 AOE 7 | . 7 . Classes Destroyed 5 | . 4 1 Hauler 2 | . 2 . Watcher 2 | . 2 . Swarmer 9 | . 9 . Grunt 3 | . 3 . Subdweller 1 | . . 1 Best Kill Streak 7 | . 7 1 Combat Bots Only 5 | . 5 1 Max Kills in Single Turn 3 | . 3 1 Gunslinging . | . . . Exploded 2 | . 2 . Melee . | . . . Uniques/NPCs Destroyed . | . . . Combat | -11 -10 -10 -------- Run | Yrd Mat Sub Hostile Shots Fired 78 | . 40 38 Missed 28 | . 13 15 Hits 50 | . 27 23 Projectile 50 | . 27 23 Critical Strikes 1 | . . 1 Damage Taken 1067 | . 427 640 Core 252 | . 28 224 Absorbed by Shields . | . . . Core Remaining (%) 100 | 100 . . Volleys Fired 65 | . 35 30 Largest 2 | . 2 2 Hottest 160 | . 60 160 Shots Fired 109 | . 68 41 Gun 87 | . 62 25 Cannon . | . . . Launcher 9 | . 6 3 Special 13 | . . 13 Kinetic 58 | . 42 16 Thermal 22 | . . 22 Explosive 9 | . 6 3 Electromagnetic 20 | . 20 . Robot Hit Streak 17 | . 8 17 Robot Miss Streak 6 | . 6 1 Penetration Max . | . . . Secondary Targets 2 | . 2 . Max Gunslinging Chain 1 | . 1 . Shots Hit Robots 59 | . 40 19 Core Hits 23 | . 20 3 Critical Kills . | . . . Critical Parts Destroyed . | . . . Critical Strikes 1 | . . 1 Destroy 1 | . . 1 Melee Attacks 3 | . 3 . Impact . | . . . Slashing . | . . . Piercing . | . . . Sneak Attacks 3 | . 3 . Combat Hostiles . | . . . Follow-up Attacks . | . . . Damage Inflicted 1269 | . 1074 195 Guns 504 | . 348 156 Cannons . | . . . Explosions 725 | . 725 . Melee . | . . . Ramming 19 | . 1 18 Kinetic 289 | . 174 115 Thermal 386 | . 324 62 Explosive 401 | . 401 . Electromagnetic 174 | . 174 . Impact . | . . . Slashing . | . . . Piercing . | . . . Highest Corruption . | . . . Average Corruption . | . . . Corruption Purged . | . . . Corruption Blocked . | . . . Overload Shots . | . . . Overflow Damage 153 | . 151 2 Projectiles . | . . . Explosions 153 | . 151 2 Melee . | . . . Knockbacks . | . . . Impact . | . . . Kinetic . | . . . Secondary . | . . . Self-Inflicted Damage 280 | . 181 99 Shots 7 | . 4 3 Rammed . | . . . Targets Rammed 1 | . 1 . Kicked 1 | . 1 . Crushed . | . . . Highest Temperature 94 | . 94 . Average Temperature 27 | . 27 . Received Heat Transfer 174 | . 54 120 Siege Activations . | . . . Martial Activations . | . . . Shielding Activations . | . . . Robots Disrupted . | . . . Combat Hostiles . | . . . Robots Corrupted . | . . . Combat Hostiles . | . . . Parts Fried . | . . . Impact Corruptions . | . . . Robots Melted . | . . . Combat Hostiles . | . . . Parts Melted . | . . . Heat Transferred 410 | . 200 210 Parts Sabotaged . | . . . Parts Stolen . | . . . Parts Stripped . | . . . Power Chain Reactions 2 | . 2 . Alert | -11 -10 -10 ------- Run | Yrd Mat Sub Maximum Alert Level 1 | . 1 . Low Security (%) 84 | 100 82 . Level 1 15 | . 17 . Level 2 . | . . . Level 3 . | . . . Level 4 . | . . . Level 5 . | . . . High Security . | . . . Max Security . | . . . Peak Influence 240 | . 240 . Initial . | . . . Average 96 | . 103 . Influence Increases 489 | . 459 30 Destroy 0b10 Robot/C 240 | . 240 . Destroy 0b10 Robot/NC 20 | . 20 . Destroy Leader 48 | . 48 . Successful Hack 19 | . 19 . Disable Machine 60 | . 60 . Destroy Structure 72 | . 72 . Lose Combat Pursuer 30 | . . 30 Influence Decreases 489 | . 291 198 Entered New Map 81 | . . 81 Time Decay 351 | . 271 80 Lost Part 57 | . 20 37 Squads Dispatched 1 | . 1 . Investigation . | . . . Extermination . | . . . Reinforcement 1 | . 1 . Assault . | . . . Garrison . | . . . Intercept . | . . . Searches Triggered . | . . . Construction Impeded . | . . . Haulers Reinforced . | . . . Active Scanning Responses . | . . . Cargo Convoy Interrupts . | . . . Stealth | -11 -10 -10 --------- Run | Yrd Mat Sub Distress Signals 3 | . 3 . Communications Jammed . | . . . Distress Signals . | . . . Times Spotted 35 | . 23 12 Peak Tracking Total 6 | . 5 6 Tactical Retreats 4 | . . 4 Traps | -11 -10 -10 ------- Run | Yrd Mat Sub Traps Triggered 1 | . 1 . Indirectly . | . . . Trap Hack Attempts . | . . . Triggered . | . . . Disarmed . | . . . Reprogrammed . | . . . Reused . | . . . Traps Extracted . | . . . Installed . | . . . Triggered . | . . . Machines | -11 -10 -10 ---------- Run | Yrd Mat Sub Machines Disabled 5 | . 5 . Max in Single Turn 3 | . 3 . Machines Repaired . | . . . Machines Dismantled . | . . . Machines Sabotaged . | . . . Overloaded Fab Kills . | . . . Hacking | -11 -10 -10 --------- Run | Yrd Mat Sub Machines Accessed 9 | . 9 . Terminals 6 | . 6 . Fabricators . | . . . Repair Stations 1 | . 1 . Recycling Units 2 | . 2 . Scanalyzers . | . . . Garrison Access . | . . . Total Hacks 27 | . 27 . Successful 15 | . 15 . Failed 12 | . 12 . Catastrophic 2 | . 2 . Database Lockouts . | . . . Manual 20 | . 20 . Terminals 20 | . 20 . Fabricators . | . . . Repair Stations 1 | . 1 . Recycling Units 6 | . 6 . Scanalyzers . | . . . Garrison Access . | . . . Terminal Hacks 5 | . 5 . Record 1 | . 1 . Terminal Index 1 | . 1 . Scanalyzer Index 1 | . 1 . Registered Components 1 | . 1 . Zone Layout 1 | . 1 . Fabricator Hacks . | . . . Repair Station Hacks 1 | . 1 . Refit 1 | . 1 . Recycling Unit Hacks 3 | . 3 . Report Inventory 1 | . 1 . Retrieve Components 2 | . 2 . Scanalyzer . | . . . Garrison Access Hacks . | . . . Unauthorized Hacks 6 | . 6 . Terminals 6 | . 6 . Botnet 6 | . 6 . Fabricators . | . . . Repair Stations . | . . . Recycling Units . | . . . Scanalyzers . | . . . Garrison Access . | . . . Data Cores Recovered . | . . . Used . | . . . Hacking Detections 7 | . 7 . Full Trace Events . | . . . Feedback Events . | . . . Feedback Blocked . | . . . Robot Schematics Acquired . | . . . Robots Built . | . . . Authchips . | . . . Time . | . . . Total Robot Build Rating . | . . . Part Schematics Acquired . | . . . Parts Built . | . . . Authchips . | . . . Time . | . . . Total Part Build Rating . | . . . Part Studies Acquired . | . . . Parts Repaired . | . . . Time . | . . . Parts Recycled . | . . . Recycled Matter . | . . . Retrieved Matter . | . . . Retrieved Components 12 | . 12 . Parts Scanalyzed . | . . . Part Schematics Acquired . | . . . Parts Damaged . | . . . Bothacking | -11 -10 -10 ------------ Run | Yrd Mat Sub Used RIF Installer . | . . . Robots Hacked 2 | . 2 . Non-combat 2 | . 2 . Combat . | . . . Robot Hacks Applied 3 | . 3 . parse_system 1 | . 1 . no_distress 1 | . 1 . check_alert 1 | . 1 . Relay Couplers Released . | . . . Fabnet Peak Effective % . | . . . Robots Rewired . | . . . Allies Hacked . | . . . Hacks Repelled . | . . . Allies | -11 -10 -10 -------- Run | Yrd Mat Sub Total Allies . | . . . Largest Group . | . . . Highest-Rated Group . | . . . Highest-Rated Ally . | . . . Total Orders . | . . . Ally Attacks . | . . . Total Damage . | . . . Kills . | . . . Allies Corrupted . | . . . Allies Melted . | . . . Intel | -11 -10 -10 ------- Run | Yrd Mat Sub Active Infowar (turns) 59 | . . 59 Optics 59 | . . 59 Robot Analysis Total . | . . . Derelict Logs Recovered 1 | . . 1 Drone Launches . | . . . Drone Recoveries . | . . . Exploration | -11 -10 -10 ------------- Run | Yrd Mat Sub Turns Passed 1232 | 49 733 450 Spaces Moved 1038 | 36 506 496 Core 395 | 14 . 381 Treads . | . . . Legs 591 | 22 506 63 Wheels 52 | . . 52 Hover . | . . . Flight . | . . . Fastest Speed 50 | 50 120 50 Average Speed 93 | 106 120 66 Slowest Speed 200 | 120 120 200 Overloaded Moves . | . . . Propulsion Burnouts . | . . . Robots Hopped . | . . . Potential Cave-ins . | . . . Cave-ins Triggered . | . . . Exploration Rate (%) 43 | 3 89 38 Regions Visited 2 Branch Regions 1 Pre-discovered Areas 2 | . . 2 Known Exits Taken . | . . . Unknown Exits Taken 2 | 1 1 . Scrap Searched . | . . . Spaces Dug . | . . . Terrain Destroyed 100 | . 79 21 Melee . | . . . Projectile . | . . . AOE 100 | . 79 21 Terrain Rammed 2 | . . 2 Walls Destroyed . | . . . Machines Disabled . | . . . Actions | -11 -10 -10 --------- Run | Yrd Mat Sub Total 1171 | 43 569 559 Wait 4 | . 2 2 Move 1036 | 35 505 496 Hop . | . . . Pick Up 15 | 2 10 3 Fast Attach 12 | 6 1 5 Attach 8 | . 2 6 Detach 4 | . . 4 Swap 10 | . 6 4 Drop 11 | . 4 7 Fire 65 | . 35 30 Melee 3 | . 3 . Ram 2 | . . 2 Kick 1 | . 1 . Crush . | . . . Escape Stasis . | . . . Rewire . | . . . Trap . | . . . Miscellaneous . | . . . Route ------- -11/Scrapyard -10/Materials (discovered 5 exits: [*Mat x2] / [*Min x2] / [*Sub]) -10/Subcaves History --------- Turn | Location | Event 28 | -11/Scrapyard | Discovered new exit (range 14) 50 | -11/Scrapyard | Entered Materials 293 | -10/Materials | Discovered new exit (range 14) 305 | -10/Materials | Build established: Mutant 412 | -10/Materials | Discovered new exit (range 10) 474 | -10/Materials | Discovered new exit (range 13) 524 | -10/Materials | Discovered new exit (range 15) 702 | -10/Materials | Discovered new exit (range 16) 783 | -10/Materials | Entered Subcaves 927 | -10/Subcaves | Lost 4 parts (1p2n1u) 976 | -10/Subcaves | Core integrity fell below 50% 977 | -10/Subcaves | Shifting Twisted Machinery released Sub. Optics 977 | -10/Subcaves | Shifting Twisted Machinery released Flamer 1050 | -10/Subcaves | Ambushed by angry Subdweller bent on revenge 1075 | -10/Subcaves | A swath of the cavern ceiling suddenly collapsed 1091 | -10/Subcaves | Learned location of Zion (-6) 1098 | -10/Subcaves | Shifting Twisted Machinery released Sub. Monowheel 1109 | -10/Subcaves | Core integrity fell below 20% 1119 | -10/Subcaves | Shifting Twisted Machinery released Flamer 1119 | -10/Subcaves | Met a Zionite searching for "candidates" 1233 | -10/Subcaves | Destroyed by 30-Y66(R) with Subdweller Machine Gun Last Messages --------------- World map confirmed: -6/Zion. 01125_ Acquired Flamer. 01136_ GP-FIW(z) pulls a Mak. Laser out of the Twisted Machinery. 01137_ DP-VC3(z) pulls a Mak. Shrapnel Gun out of the Twisted Machinery. 01139_ B9-P9Y(R) destroyed. 01141_ Acquired Sub. Monowheel. 01144_ Acquired Battle Cannon. 01147_ Acquired Sub. Laser. 01148_ Acquired 34 matter. 01161_ GP-FIW(z) pokes at the Twisted Machinery. 01164_ Acquired 13 matter. 01174_ Acquired 8 matter. 01176_ Acquired 9 matter. 01181_ Acquired 14 matter. 01205_ Acquired 11 matter. 01214_ Subatomizers dissect the Aluminum Leg. 01216_ Critical hit (Destroy). [Achievement: Back For More] Map ----- +----------------------------------------------------+ | ?????????????????????????????????????????????????? | | ?????????????????????????????????????????????????? | | ?????????????????????????????????????????????????? | | ?????????????????????????????????????????????????? | | ?????????????????????????????????????????????????? | | ?????????????????????????????????????????????????? | | ?????????????????????????????????????????????????? | | ?????????????????????????????????????????????????? | | ?????????????????????????????????????????????????? | | ?????????????????????????????????????????????????? | | ?????????????????????????????????????????????????? | | ?????????????????????????????????????????????????? | | ?????????????????????????????????????????????????? | | ?????????????????????????????????????????????????? | | ?????????????????????????????????????????????????? | | ?????????????????????????????????????????????????? | | ?????????????????????????????????????????????????? | | ??????????????????#??????????????????????????????? | | ??????????????????# ?????????????????????????????? | | ??????????????????# ????????????????????????????? | | ???????????????????# ???????????????????????????? | | ???????????????????# ?????####?????????????????? | | ??????????????????## ######" #?????????????????? | | ??????????????????"""" # ##"" ####??????????????? | | ?????????????????"" """ """% ##?????????????? | | ?????????????????"" """ @ R ##????????????? | | ????????????????"" "#" ### #????????????? | | ???????????????#" #??### ### #????????????? | | ???????????????##""???####[" ## ##????????????? | | ?????????############## " %%" " ##?????????????? | | ??????#### "" # ## # =*" " ##?????????????? | | ??????# "" ###"" ###???????????? | | ??????# """""""" ####"" #???????????? | | ?????## """#"##"""# """"" "" #???????????? | | ?????# ############# """"" # #???????????? | | ?????? #??????????## | # ### ### ##??????????? | | ??????# #????#####??## ##?###?# #??????????? | | #???### #???## #???# ##?????## #??????????? | | ##### ###### ###### #?????# #??????????? | | # # ## # #?????## ##??????????? | | "" ##?????# #??????????? | | """ # ##??????## #??????????? | | ### ## " ##??####### ##??????????? | | #?## ###### """##??# #??????????? | | #??# ##????## ""#??# ##??????????? | | #?# ##??????# #??#""" #???????????? | | ## ## #???????### #??#" " #???????????? | | ?## ## "##?????##"# ##?# " ##???????????? | | ??? #####"#?????#" " ##""""####?????????????? | | ???##?#""##????"## #" """" %#?????????????????? | +----------------------------------------------------+ Best States ------------- Heat Dissipation 25 Energy Generation 10 Energy Capacity 125 Matter Stores 300 Matter Capacity 300 Sight Range 21 Terrain Scan Density 10 Armor Coverage 150 Evasion (%) 55 Item Schematics ----------------- None Robot Schematics ------------------ None Fabricated ------------ Nothing Repaired ---------- Nothing Studied --------- None Alien Tech Used ----------------- None Achievements -------------- Back For More Fitting Room Junior Dev Spot Them First Challenges ------------ None Game ------ Seed FactoryFocalMediator Manual? 0 Play Time 00:23:28 Cumulative 58.7 hours Start 2026.07.27 @ 01:01:56 End 2026.07.27 @ 01:27:15 Sessions 1 Manual Loads 0 Difficulty Rogue Special Mode None Game No. 50 Rogue 44 Adventurer 6 Explorer 0 Win Type - Total 0 Types 0/0/0/0/0/0/0/0/0/0 Lore% 30 Gallery% 34 Achievement% 22 Wizard Run 0 Options --------- Layout 1 ASCII 0 Keyboard 0 Movement Arrows Keybinds 0 Fullscreen 2 Font 24/Smallcaps Map View 50x35 Zoom Use 0% Tactical HUD 1 Map Filters NONE Filters NONE Steam 1 RUN: b029fb5e-eb89-4549-a630-cb00d067b796